lending/lending_fUSD_20240411
["ID","MTS","AMOUNT","RATE_DAILY","PERIOD"]
[322149762,1712851847850,-1284.06,0.00032876,2]
[322149763,1712851847860,-1664.66,0.00032876,2]
[322149764,1712851847870,-500.0,0.00032876,2]
[322149765,1712851847883,-500.0,0.00032876,2]
[322149766,1712851847893,-697.44,0.00032876,2]
[322149767,1712851847903,-500.0,0.00032876,2]
[322149768,1712851847913,-611.4,0.00032876,2]
[322149769,1712851847923,-771.48,0.00032876,2]
[322149770,1712851847933,-500.0,0.00032876,2]
[322149771,1712851847944,-500.0,0.00032876,2]
[322149772,1712851847954,-500.0,0.00032876,2]
[322149773,1712851847965,-766.42,0.00032876,2]
[322149774,1712851847976,-500.0,0.00032876,2]
[322149775,1712851847985,-937.76,0.00032876,2]
[322149776,1712851847994,-6630.14,0.00032876,2]
[322149777,1712851848003,-500.0,0.00032876,2]
[322149778,1712851848013,-500.0,0.00032876,2]
[322149779,1712851848023,-1265.2,0.00032876,2]
[322149780,1712851848035,-768.02,0.00032876,2]
[322149781,1712851848082,-605.77879146,0.00032876,2]
[322149782,1712851848094,-1143.47,0.00032876,2]
[322149783,1712851848107,-634.28,0.00032876,2]
[322149784,1712851848119,-712.53,0.00032876,2]
[322149785,1712851848132,-500.0,0.00032876,2]
[322149786,1712851848143,-500.0,0.00032876,2]
[322149787,1712851848154,-1010.38,0.00032876,2]
[322149788,1712851848165,-2633.45,0.00032876,2]
[322149789,1712851848176,-2681.65,0.00032876,2]
[322149790,1712851848187,-10029.98,0.00032876,2]
[322149791,1712851848199,-514.63,0.00032876,2]
[322149792,1712851848210,-639.75,0.00032876,2]
[322149793,1712851848222,-500.0,0.00032876,2]
[322149794,1712851848234,-500.0,0.00032876,2]
[322149795,1712851848245,-1706.21,0.00032876,2]
[322149796,1712851848256,-5492.13,0.00032876,2]
[322149797,1712851848268,-2640.64,0.00032876,2]
[322149798,1712851848279,-500.0,0.00032876,2]
[322149799,1712851848290,-44186.18,0.00032876,2]
[322149800,1712851848300,-5588.77,0.00032876,2]
[322149801,1712851848311,-1259.85,0.00032876,2]
[322149802,1712851848322,-2352.33,0.00032876,2]
[322149803,1712851848332,-500.0,0.00032876,2]
[322149804,1712851848341,-500.0,0.00032876,2]
[322149805,1712851848352,-1247.47,0.00032876,2]
[322149806,1712851848362,-590.59,0.00032876,2]
[322149807,1712851848372,-715.73,0.00032876,2]
[322149808,1712851848384,-1294.79,0.00032876,2]
[322149809,1712851848395,-500.0,0.00032876,2]
[322149810,1712851848405,-500.0,0.00032876,2]
[322149811,1712851848414,-500.0,0.00032876,2]
[322149812,1712851848424,-500.0,0.00032876,2]
[322149813,1712851848435,-500.0,0.00032876,2]
[322149814,1712851848446,-23916.93,0.00032876,2]
[322149815,1712851848458,-500.0,0.00032876,2]
[322149816,1712851848468,-1410.51,0.00032876,2]
[322149817,1712851848478,-500.0,0.00032876,2]
[322149818,1712851848489,-500.0,0.00032876,2]
[322149819,1712851848500,-1029.66,0.00032876,2]
[322149820,1712851848511,-4052.88,0.00032876,2]
[322149821,1712851848520,-572.85635404,0.00032876,2]
[322149822,1712851848529,-517.63227798,0.00032876,2]
[322149823,1712851848539,-500.0,0.00032876,2]
[322149824,1712851848548,-500.0,0.00032876,2]
[322149825,1712851848559,-500.0,0.00032876,2]
[322149826,1712851848569,-2735.62,0.00032876,2]
[322149827,1712851848579,-500.0,0.00032876,2]
[322149828,1712851848590,-500.0,0.00032876,2]
[322149829,1712851848601,-721.19,0.00032876,2]
[322149830,1712851848611,-2486.05,0.00032876,2]
[322149831,1712851848622,-7071.69,0.00032876,2]
[322149832,1712851848634,-500.0,0.00032876,2]
[322149833,1712851848644,-500.0,0.00032876,2]
[322149834,1712851848655,-500.0,0.00032876,2]
[322149835,1712851848665,-500.0,0.00032876,2]
[322149836,1712851848675,-2449.29,0.00032876,2]
[322149837,1712851848685,-12583.7,0.00032876,2]
[322149838,1712851848694,-548.25562345,0.00032876,2]
[322149839,1712851848706,-1481.61,0.00032876,2]
[322149840,1712851848727,-1417.93,0.00032876,2]
[322149841,1712851848736,-500.0,0.00032876,2]
[322149842,1712851848746,-500.0,0.00032876,2]
[322149843,1712851848756,-660.11,0.00032876,2]
[322149844,1712851848765,-4393.53,0.00032876,2]
[322149845,1712851848775,-500.0,0.00032876,2]
[322149846,1712851848785,-500.0,0.00032876,2]
[322149847,1712851848795,-848.96,0.00032876,2]
[322149848,1712851848804,-2484.77,0.00032876,2]
[322149849,1712851848814,-526.62046044,0.00032876,2]
[322149850,1712851848823,-4262.48,0.00032876,2]
[322149851,1712851848833,-500.0,0.00032876,2]
[322149852,1712851848843,-300.0,0.00032876,2]
[322149853,1712851848852,-2107.72,0.00032876,2]
[322149854,1712851848862,-500.0,0.00032876,2]
[322149855,1712851848871,-867.24,0.00032876,2]
[322149856,1712851848881,-2305.08,0.00032876,2]
[322149857,1712851848891,-500.0,0.00032876,2]
[322149858,1712851848909,-500.0,0.00032876,2]
[322149859,1712851848919,-3890.2,0.00032876,2]
[322149860,1712851848929,-500.0,0.00032876,2]
[322149861,1712851848939,-1855.45,0.00032876,2]
[322149862,1712851848948,-500.0,0.00032876,2]
[322149863,1712851848958,-1169.12,0.00032876,2]
[322149864,1712851848968,-343.54721225,0.00032876,2]
[322149865,1712851848979,-1191.25,0.00032876,2]
[322149866,1712851848989,-1991.04,0.00032876,2]
[322149867,1712851848999,-500.0,0.00032876,2]
[322149868,1712851849009,-500.0,0.00032876,2]
[322149869,1712851849019,-4398.85,0.00032876,2]
[322149870,1712851849029,-500.0,0.00032876,2]
[322149871,1712851849038,-500.0,0.00032876,2]
[322149872,1712851849048,-500.0,0.00032876,2]
[322149873,1712851849058,-896.63,0.00032876,2]
[322149874,1712851849067,-1547.43,0.00032876,2]
[322149875,1712851849077,-500.0,0.00032876,2]
[322149876,1712851849087,-6857.38,0.00032876,2]
[322149877,1712851849100,-738.6,0.00032876,2]
[322149878,1712851849110,-500.0,0.00032876,2]
[322149879,1712851849119,-660.97,0.00032876,2]
[322149880,1712851849129,-1625.9,0.00032876,2]
[322149881,1712851849139,-4900.38,0.00032876,2]
[322149882,1712851849149,-752.86,0.00032876,2]
[322149883,1712851849159,-500.0,0.00032876,2]
[322149884,1712851849168,-4202.03,0.00032876,2]
[322149885,1712851849179,-3774.16,0.00032876,2]
[322149886,1712851849188,-500.0,0.00032876,2]
[322149887,1712851849198,-500.0,0.00032876,2]
[322149888,1712851849207,-1029.21,0.00032876,2]
[322149889,1712851849217,-1630.02,0.00032876,2]
[322149890,1712851849226,-500.0,0.00032876,2]
[322149891,1712851849237,-1587.35,0.00032876,2]
[322149892,1712851849248,-500.0,0.00032876,2]
[322149893,1712851849258,-500.0,0.00032876,2]
[322149894,1712851849267,-402.86904629,0.00032876,2]
[322149895,1712851849277,-2942.58,0.00032876,2]
[322149896,1712851849287,-500.0,0.00032876,2]
[322149897,1712851849297,-36832.68,0.00032876,2]
[322149898,1712851849306,-500.0,0.00032876,2]
[322149899,1712851849315,-3853.95,0.00032876,2]
[322149900,1712851849325,-500.0,0.00032876,2]
[322149901,1712851849334,-1435.5,0.00032876,2]
[322149902,1712851849343,-500.0,0.00032876,2]
[322149903,1712851849352,-500.0,0.00032876,2]
[322149904,1712851849362,-500.0,0.00032876,2]
[322149905,1712851849371,-585.45,0.00032876,2]
[322149906,1712851849384,-500.0,0.00032876,2]
[322149907,1712851849395,-1616.51,0.00032876,2]
[322149908,1712851849405,-500.0,0.00032876,2]
[322149909,1712851849414,-500.0,0.00032876,2]
[322149910,1712851849423,-528.42,0.00032876,2]
[322149911,1712851849433,-500.0,0.00032876,2]
[322149912,1712851849443,-500.0,0.00032876,2]
[322149913,1712851849452,-500.0,0.00032876,2]
[322149914,1712851849462,-3127.2,0.00032876,2]
[322149915,1712851849472,-500.0,0.00032876,2]
[322149916,1712851849481,-500.0,0.00032876,2]
[322149917,1712851849491,-500.0,0.00032876,2]
[322149918,1712851849500,-1920.55,0.00032876,2]
[322149919,1712851849510,-544.71,0.00032876,2]
[322149920,1712851849519,-547.59831631,0.00032876,2]
[322149921,1712851849529,-500.0,0.00032876,2]
[322149922,1712851849538,-1112.43,0.00032876,2]
[322149923,1712851849548,-500.0,0.00032876,2]
[322149924,1712851849557,-781.13,0.00032876,2]
[322149925,1712851849567,-500.0,0.00032876,2]
[322149926,1712851849576,-3156.25,0.00032876,2]
[322149927,1712851849586,-606.42,0.00032876,2]
[322149928,1712851849595,-1033.72,0.00032876,2]
[322149929,1712851849605,-7905.84,0.00032876,2]
[322149930,1712851849615,-2409.93,0.00032876,2]
[322149931,1712851849625,-500.0,0.00032876,2]
[322149932,1712851849637,-1181.12,0.00032876,2]
[322149933,1712851849647,-2102.27,0.00032876,2]
[322149934,1712851849656,-4664.47,0.00032876,2]
[322149935,1712851849666,-500.0,0.00032876,2]
[322149936,1712851849675,-500.0,0.00032876,2]
[322149937,1712851849685,-340.66540657,0.00032876,2]
[322149938,1712851849694,-3378.63,0.00032876,2]
[322149939,1712851849704,-500.0,0.00032876,2]
[322149940,1712851849714,-500.0,0.00032876,2]
[322149941,1712851849723,-500.0,0.00032876,2]
[322149942,1712851849733,-2851.19,0.00032876,2]
[322149943,1712851849743,-1828.33,0.00032876,2]
[322149944,1712851849752,-16623.66,0.00032876,2]
[322149945,1712851849762,-635.97,0.00032876,2]
[322149946,1712851849772,-509.54,0.00032876,2]
[322149947,1712851849783,-3965.6,0.00032876,2]
[322149948,1712851849793,-500.0,0.00032876,2]
[322149949,1712851849805,-500.0,0.00032876,2]
[322149950,1712851849815,-1386.98,0.00032876,2]
[322149951,1712851849827,-500.0,0.00032876,2]
[322149952,1712851849839,-500.0,0.00032876,2]
[322149953,1712851849849,-500.0,0.00032876,2]
[322149954,1712851849860,-500.0,0.00032876,2]
[322149955,1712851849870,-3425.34,0.00032876,2]
[322149956,1712851849880,-13352.57,0.00032876,2]
[322149957,1712851849890,-500.0,0.00032876,2]
[322149958,1712851849901,-500.0,0.00032876,2]
[322149959,1712851849911,-7589.2,0.00032876,2]
[322149960,1712851849922,-550.39,0.00032876,2]
[322149961,1712851849932,-2483.07,0.00032876,2]
[322149962,1712851849942,-500.0,0.00032876,2]
[322149963,1712851849952,-8636.22,0.00032876,2]
[322149964,1712851849962,-3000.26,0.00032876,2]
[322149965,1712851849973,-19507.07,0.00032876,2]
[322149966,1712851849985,-69128.82,0.00032876,2]
[322149967,1712851849996,-500.0,0.00032876,2]
[322149968,1712851850007,-500.0,0.00032876,2]
[322149969,1712851850018,-4976.15,0.00032876,2]
[322149970,1712851850029,-500.0,0.00032876,2]
[322149971,1712851850039,-7988.57,0.00032876,2]
[322149972,1712851850049,-1615.22,0.00032876,2]
[322149973,1712851850060,-500.0,0.00032876,2]
[322149974,1712851850071,-871.72,0.00032876,2]
[322149975,1712851850082,-2367.1,0.00032876,2]
[322149976,1712851850091,-500.0,0.00032876,2]
[322149977,1712851850106,-500.0,0.00032876,2]
[322149978,1712851850116,-500.0,0.00032876,2]
[322149979,1712851850126,-895.24,0.00032876,2]
[322149980,1712851850139,-18665.83,0.00032876,2]
[322149981,1712851850149,-2626.37,0.00032876,2]
[322149982,1712851850160,-3939.36,0.00032876,2]
[322149983,1712851850171,-284.29228612,0.00032876,2]
[322149984,1712851850183,-5211.87,0.00032876,2]
[322149985,1712851850194,-13557.88,0.00032876,2]
[322149986,1712851850204,-4141.88,0.00032876,2]
[322149987,1712851850214,-509.21642673,0.00032876,2]
[322149988,1712851850225,-583.09066339,0.00032876,2]
[322149989,1712851850236,-693.5,0.00032876,2]
[322149990,1712851850246,-500.0,0.00032876,2]
[322149991,1712851850257,-500.0,0.00032876,2]
[322149992,1712851850268,-3602.17,0.00032876,2]
[322149993,1712851850279,-585.73,0.00032876,2]
[322149994,1712851850290,-500.0,0.00032876,2]
[322149995,1712851850300,-500.0,0.00032876,2]
[322149996,1712851850311,-500.0,0.00032876,2]
[322149997,1712851850321,-500.0,0.00032876,2]
[322149998,1712851850333,-14182.99,0.00032876,2]
[322149999,1712851850343,-1189.85,0.00032876,2]
[322150000,1712851850354,-3998.12,0.00032876,2]
[322150001,1712851850364,-7006.07,0.00032876,2]
[322150002,1712851850375,-529.98,0.00032876,2]
[322150003,1712851850387,-539.7756772,0.00032876,2]
[322150004,1712851850397,-500.0,0.00032876,2]
[322150005,1712851850408,-500.0,0.00032876,2]
[322150006,1712851850419,-4348.86,0.00032876,2]
[322150007,1712851850429,-500.0,0.00032876,2]
[322150008,1712851850439,-8616.95,0.00032876,2]
[322150009,1712851850449,-500.0,0.00032876,2]
[322150010,1712851850458,-500.0,0.00032876,2]
[322150011,1712851850468,-504.81,0.00032876,2]
[322150012,1712851850478,-500.0,0.00032876,2]
[322150013,1712851850487,-500.0,0.00032876,2]
[322150014,1712851850497,-3748.84,0.00032876,2]
[322150015,1712851850508,-500.0,0.00032876,2]
[322150016,1712851850518,-500.0,0.00032876,2]
[322150017,1712851850528,-2110.18,0.00032876,2]
[322150018,1712851850538,-254.90422389,0.00032876,2]
[322150019,1712851850547,-2679.66,0.00032876,2]
[322150020,1712851850557,-766.65,0.00032876,2]
[322150021,1712851850567,-500.0,0.00032876,2]
[322150022,1712851850577,-500.0,0.00032876,2]
[322150023,1712851850586,-4354.83,0.00032876,2]
[322150024,1712851850596,-1169.08,0.00032876,2]
[322150025,1712851850605,-500.0,0.00032876,2]
[322150026,1712851850615,-7542.45,0.00032876,2]
[322150027,1712851850625,-1216.82,0.00032876,2]
[322150028,1712851850637,-500.0,0.00032876,2]
[322150029,1712851850646,-500.0,0.00032876,2]
[322150030,1712851850655,-500.0,0.00032876,2]
[322150031,1712851850665,-588.16682558,0.00032876,2]
[322150032,1712851850675,-152.31805609,0.00032876,2]
[322150033,1712851850685,-500.0,0.00032876,2]
[322150034,1712851850695,-889.18,0.00032876,2]
[322150035,1712851850705,-930.83,0.00032876,2]
[322150036,1712851850715,-500.0,0.00032876,2]
[322150037,1712851850725,-1470.17,0.00032876,2]
[322150038,1712851850735,-500.0,0.00032876,2]
[322150039,1712851850745,-570.35,0.00032876,2]
[322150040,1712851850755,-500.0,0.00032876,2]
[322150041,1712851850765,-1303.82,0.00032876,2]
[322150042,1712851850776,-500.0,0.00032876,2]
[322150043,1712851850786,-500.0,0.00032876,2]
[322150044,1712851850796,-176.998061,0.00032876,7]
[322150045,1712851851013,-176.998061,0.00032876,7]
[322150046,1712851851024,-8612.3,0.00032876,2]
[322150047,1712851851034,-952.37,0.00032876,2]
[322150048,1712851851045,-4430.17,0.00032876,2]
[322150049,1712851851055,-9484.06,0.00032876,2]
[322150050,1712851851065,-979.4,0.00032876,2]
[322150051,1712851851075,-500.0,0.00032876,2]
[322150052,1712851851085,-500.0,0.00032876,2]
[322150053,1712851851098,-5278.42,0.00032876,2]
[322150054,1712851851109,-620.32,0.00032876,2]
[322150055,1712851851119,-500.0,0.00032876,2]
[322150056,1712851851130,-25830.93,0.00032876,2]
[322150057,1712851851144,-176.998061,0.00032876,7]
[322150058,1712851851154,-176.998061,0.00032876,7]
[322150059,1712851851165,-2116.41,0.00032876,2]
[322150060,1712851851178,-984.29,0.00032876,2]
[322150061,1712851851191,-500.0,0.00032876,2]
[322150062,1712851851202,-500.0,0.00032876,2]
[322150063,1712851851212,-4657.56,0.00032876,2]
[322150064,1712851851222,-500.0,0.00032876,2]
[322150065,1712851851232,-952.87,0.00032876,2]
[322150066,1712851851242,-500.0,0.00032876,2]
[322150067,1712851851251,-9798.51,0.00032876,2]
[322150068,1712851851262,-24878.05,0.00032876,2]
[322150069,1712851851273,-5446.94,0.00032876,2]
[322150070,1712851851283,-500.0,0.00032876,2]
[322150071,1712851851294,-500.0,0.00032876,2]
[322150072,1712851851304,-3896.38,0.00032876,2]
[322150073,1712851851314,-1225.77,0.00032876,2]
[322150074,1712851851324,-500.0,0.00032876,2]
[322150075,1712851851333,-500.0,0.00032876,2]
[322150076,1712851851342,-3078.81,0.00032876,2]
[322150077,1712851851352,-32875.91,0.00032876,2]
[322150078,1712851851362,-500.0,0.00032876,2]
[322150079,1712851851372,-500.0,0.00032876,2]
[322150080,1712851851385,-948.8,0.00032876,2]
[322150081,1712851851395,-500.0,0.00032876,2]
[322150082,1712851851405,-500.0,0.00032876,2]
[322150083,1712851851415,-500.0,0.00032876,2]
[322150084,1712851851425,-500.0,0.00032876,2]
[322150085,1712851851436,-859.66,0.00032876,2]
[322150086,1712851851446,-1618.62,0.00032876,2]
[322150087,1712851851456,-515.46,0.00032876,2]
[322150088,1712851851465,-500.0,0.00032876,2]
[322150089,1712851851475,-3835.38,0.00032876,2]
[322150090,1712851851485,-500.0,0.00032876,2]
[322150091,1712851851494,-523.89,0.00032876,2]
[322150092,1712851851504,-1499.24,0.00032876,2]
[322150093,1712851851514,-500.0,0.00032876,2]
[322150094,1712851851525,-500.0,0.00032876,2]
[322150095,1712851851536,-1180.68,0.00032876,2]
[322150096,1712851851547,-66616.31,0.00032876,2]
[322150097,1712851851557,-355.35701287,0.00032876,2]
[322150098,1712851851566,-4414.19,0.00032876,2]
[322150099,1712851851576,-500.0,0.00032876,2]
[322150100,1712851851586,-500.0,0.00032876,2]
[322150101,1712851851596,-500.0,0.00032876,2]
[322150102,1712851851606,-2633.74,0.00032876,2]
[322150103,1712851851615,-270.21740544,0.00032876,2]
[322150104,1712851851625,-1087.03,0.00032876,2]
[322150105,1712851851638,-2276.04,0.00032876,2]
[322150106,1712851851647,-500.0,0.00032876,2]
[322150107,1712851851657,-3896.64425587,0.00032876,2]
[322150108,1712851852210,-20822.30574413,0.00032876,2]
[322150109,1712851852221,-500.0,0.00032876,2]
[322150110,1712851852232,-1872.98,0.00032876,2]
[322150111,1712851852242,-500.0,0.00032876,2]
[322150112,1712851852253,-821.72,0.00032876,2]
[322150113,1712851852263,-500.0,0.00032876,2]
[322150114,1712851852274,-11374.77,0.00032876,2]
[322150115,1712851852284,-776.95,0.00032876,2]
[322150116,1712851852294,-500.0,0.00032876,2]
[322150117,1712851852303,-500.0,0.00032876,2]
[322150118,1712851852313,-500.0,0.00032876,2]
[322150119,1712851852323,-3255.72,0.00032876,2]
[322150120,1712851852334,-500.0,0.00032876,2]
[322150121,1712851852344,-4615.17,0.00032876,2]
[322150122,1712851852354,-500.0,0.00032876,2]
[322150123,1712851852365,-500.0,0.00032876,2]
[322150124,1712851852377,-500.0,0.00032876,2]
[322150125,1712851852392,-1993.54,0.00032876,2]
[322150126,1712851852401,-500.0,0.00032876,2]
[322150127,1712851852412,-500.0,0.00032876,2]
[322150128,1712851852422,-500.0,0.00032876,2]
[322150129,1712851852433,-500.0,0.00032876,2]
[322150130,1712851852443,-4846.54,0.00032876,2]
[322150131,1712851852453,-500.0,0.00032876,2]
[322150132,1712851852463,-1591.67,0.00032876,2]
[322150133,1712851852474,-1076.0,0.00032876,2]
[322150134,1712851852484,-2535.0,0.00032876,2]
[322150135,1712851852494,-4064.01,0.00032876,2]
[322150136,1712851852505,-1551.9,0.00032876,2]
[322150137,1712851852516,-1976.11,0.00032876,2]
[322150138,1712851852525,-1900.95,0.00032876,2]
[322150139,1712851852536,-7275.66,0.00032876,2]
[322150140,1712851852546,-500.0,0.00032876,2]
[322150141,1712851852556,-6060.33,0.00032876,2]
[322150142,1712851852566,-7818.33,0.00032876,2]
[322150143,1712851852576,-500.0,0.00032876,2]
[322150144,1712851852585,-563.5602161,0.00032876,2]
[322150145,1712851852596,-2420.27,0.00032876,2]
[322150146,1712851852606,-500.0,0.00032876,2]
[322150147,1712851852617,-1673.72,0.00032876,2]
[322150148,1712851852627,-500.0,0.00032876,2]
[322150149,1712851852637,-500.0,0.00032876,2]
[322150150,1712851852648,-500.0,0.00032876,2]
[322150151,1712851852658,-603.96,0.00032876,2]
[322150152,1712851852669,-500.0,0.00032876,2]
[322150153,1712851852679,-500.0,0.00032876,2]
[322150154,1712851852689,-3688.04,0.00032876,2]
[322150155,1712851852699,-500.0,0.00032876,2]
[322150156,1712851852708,-500.0,0.00032876,2]
[322150157,1712851852719,-1608.24,0.00032876,2]
[322150158,1712851852730,-856.65,0.00032876,2]
[322150159,1712851852740,-10182.19,0.00032876,2]
[322150160,1712851852749,-6424.26,0.00032876,2]
[322150161,1712851852759,-500.0,0.00032876,2]
[322150162,1712851852770,-500.0,0.00032876,2]
[322150163,1712851852780,-1678.52,0.00032876,2]
[322150164,1712851852790,-1231.15,0.00032876,2]
[322150165,1712851852800,-3883.19,0.00032876,2]
[322150166,1712851852809,-3850.27,0.00032876,2]
[322150167,1712851852818,-500.0,0.00032876,2]
[322150168,1712851852828,-500.0,0.00032876,2]
[322150169,1712851852839,-500.0,0.00032876,2]
[322150170,1712851852851,-212.51976572,0.00032876,2]
[322150171,1712851852862,-500.0,0.00032876,2]
[322150172,1712851852873,-529.02,0.00032876,2]
[322150173,1712851852886,-829.42,0.00032876,2]
[322150174,1712851852897,-500.0,0.00032876,2]
[322150175,1712851852907,-500.0,0.00032876,2]
[322150176,1712851852917,-1672.2,0.00032876,2]
[322150177,1712851852928,-4160.99,0.00032876,2]
[322150178,1712851852939,-1379.14,0.00032876,2]
[322150179,1712851852949,-500.0,0.00032876,2]
[322150180,1712851852961,-500.0,0.00032876,2]
[322150181,1712851852970,-856.42,0.00032876,2]
[322150182,1712851852981,-826.17,0.00032876,2]
[322150183,1712851852993,-5559.87,0.00032876,2]
[322150184,1712851853004,-9782.05,0.00032876,2]
[322150185,1712851853014,-2333.7,0.00032876,2]
[322150186,1712851853025,-500.0,0.00032876,2]
[322150187,1712851853038,-500.0,0.00032876,2]
[322150188,1712851853047,-500.0,0.00032876,2]
[322150189,1712851853057,-500.0,0.00032876,2]
[322150190,1712851853067,-503.74,0.00032876,2]
[322150191,1712851853081,-531.66,0.00032876,2]
[322150192,1712851853093,-2178.79,0.00032876,2]
[322150193,1712851853107,-697.28,0.00032876,2]
[322150194,1712851853117,-11954.9,0.00032876,2]
[322150195,1712851853128,-1003.28,0.00032876,2]
[322150196,1712851853142,-500.0,0.00032876,2]
[322150197,1712851853151,-500.0,0.00032876,2]
[322150198,1712851853162,-2935.94,0.00032876,2]
[322150199,1712851853172,-6036.72,0.00032876,2]
[322150200,1712851853184,-500.0,0.00032876,2]
[322150201,1712851853194,-199.925267,0.00032877,14]
[322150202,1712851853204,-151.0,0.00032877,7]
[322150203,1712851853214,-151.0,0.00032877,7]
[322150204,1712851853223,-151.0,0.00032877,7]
[322150205,1712851853233,-151.0,0.00032877,7]
[322150206,1712851853322,-151.0,0.00032877,7]
[322150207,1712851853332,-151.0,0.00032877,7]
[322150208,1712851853342,-160.66812,0.00032877,7]
[322150209,1712851853353,-151.0,0.00032877,7]
[322150210,1712851853364,-151.0,0.00032877,7]
[322150211,1712851853374,-151.0,0.00032877,7]
[322150212,1712851853390,-151.0,0.00032877,7]
[322150213,1712851853401,-151.0,0.00032877,7]
[322150214,1712851853415,-151.0,0.00032877,7]
[322150215,1712851853425,-151.0,0.00032877,7]
[322150216,1712851853437,-151.0,0.00032877,7]
[322150217,1712851853446,-151.612129,0.00032877,7]
[322150218,1712851853458,-151.563723,0.00032877,7]
[322150219,1712851853468,-151.285966,0.00032877,7]
[322150220,1712851853479,-151.0,0.00032877,7]
[322150221,1712851853490,-151.0,0.00032877,7]
[322150222,1712851853501,-151.0,0.00032877,7]
[322150223,1712851853514,-151.0,0.00032877,7]
[322150224,1712851853524,-152.000184,0.00032877,7]
[322150225,1712851853533,-151.0,0.00032877,7]
[322150226,1712851853543,-151.0,0.00032877,7]
[322150227,1712851853554,-151.0,0.00032877,7]
[322150228,1712851853564,-151.0,0.00032877,7]
[322150229,1712851853575,-151.0,0.00032877,7]
[322150230,1712851853585,-151.0,0.00032877,7]
[322150231,1712851853595,-151.0,0.00032877,7]
[322150232,1712851853606,-151.0,0.00032877,7]
[322150233,1712851853616,-151.0,0.00032877,7]
[322150234,1712851853626,-151.0,0.00032877,7]
[322150235,1712851853638,-385.60634,0.00032877,7]
[322150236,1712851853650,-385.60634,0.00032877,7]
[322150237,1712851853660,-385.60634,0.00032877,7]
[322150238,1712851853669,-385.60634,0.00032877,7]
[322150239,1712851853678,-151.0,0.00032877,7]
[322150240,1712851853687,-151.0,0.00032877,7]
[322150241,1712851853696,-151.0,0.00032877,7]
[322150242,1712851853705,-151.0,0.00032877,7]
[322150243,1712851853715,-151.0,0.00032877,7]
[322150244,1712851853724,-153.366719,0.00032877,7]
[322150245,1712851853734,-151.0,0.00032877,7]
[322150246,1712851853743,-151.0,0.00032877,7]
[322150247,1712851853753,-151.0,0.00032877,7]
[322150248,1712851853763,-151.0,0.00032877,7]
[322150249,1712851853773,-151.0,0.00032877,7]
[322150250,1712851853782,-151.0,0.00032877,7]
[322150251,1712851853791,-151.239843,0.00032877,7]
[322150252,1712851853800,-233.207918,0.00032877,7]
[322150253,1712851853810,-233.207918,0.00032877,7]
[322150254,1712851853819,-233.207918,0.00032877,7]
[322150255,1712851853829,-233.207918,0.00032877,7]
[322150256,1712851853839,-151.0,0.00032877,7]
[322150257,1712851853848,-151.0,0.00032877,7]
[322150258,1712851853858,-151.0,0.00032877,7]
[322150259,1712851853868,-151.0,0.00032877,7]
[322150260,1712851853878,-151.0,0.00032877,7]
[322150261,1712851853894,-151.0,0.00032877,7]